[Event "HUN-chT Youth 2019"]
[Site "Budapest"]
[Date "2019.10.27"]
[Round "3.16"]
[White "Lengyel, Andrea"]
[Black "Sulyok, Eszter"]
[Result "0-1"]
[ECO "D37"]
[WhiteElo "1872"]
[BlackElo "1893"]
[Annotator "NA"]
[PlyCount "140"]
[EventDate "2019.10.26"]
[EventType "team-tourn"]
[EventCountry "HUN"]
[SourceTitle "playchess.com"]
[Source "ChessBase"]
[SourceQuality "1"]
[TimeControl "5400+30"]

1. d4 {[%emt 0:00:00]} d5 {[%emt 0:00:00]} 2. c4 {[%emt 0:00:00]} e6 {[%emt 0:00:00]} 3. Nf3 {[%emt 0:00:06]} Nf6 {[%emt 0:00:00]} 4. Nc3 {[%emt 0:00:03]} Be7 {[%emt 0:00:02]} 5. Bf4 {[%emt 0:00:06]} a6 {[%emt 0:01:13]} 6. a4 {[%emt 0:01:05]} O-O {[%emt 0:00:30]} 7. e3 {[%emt 0:00:13]} b6 {[%emt 0:01:49]} 8. Bd3 {[%emt 0:02:09]} dxc4 {[%emt 0:00:56]} 9. Bxc4 {[%emt 0:00:08]} Bb7 {[%emt 0:00:05]} 10. O-O {[%emt 0:01:31]} Nbd7 {[%emt 0:02:03]} 11. Re1 {[%emt 0:02:11]} Nh5 {[%emt 0:02:25]} 12. Be5 {[%emt 0:01:03]} Nhf6 {[%emt 0:06:03]} 13. Bg3 {[%emt 0:04:13]} Rc8 {[%emt 0:01:52]} 14. e4 {[%emt 0:02:38]} Bb4 {[%emt 0:02:35]} 15. Bh4 {[%emt 0:08:53]} Qe8 {[%emt 0:02:22]} 16. e5 {[%emt 0:00:20]} Nd5 {[%emt 0:00:32]} 17. Qb3 {[%emt 0:02:04]} c5 {[%emt 0:05:03]} 18. Red1 {[%emt 0:03:03]} Bxc3 {[%emt 0:07:46]} 19. bxc3 {[%emt 0:00:27]} Nf4 {[%emt 0:00:15]} 20. Bg3 {[%emt 0:07:43]} Ng6 {[%emt 0:04:30]} 21. Ng5 {[%emt 0:16:53]} Kh8 {[%emt 0:07:09]} 22. d5 {[%emt 0:02:06]} exd5 {[%emt 0:06:01]} 23. Bxd5 {[%emt 0:01:11]} Bxd5 {[%emt 0:00:18]} 24. Qxd5 {[%emt 0:00:23]} Ndxe5 {[%emt 0:06:05]} 25. f4 {[%emt 0:02:26]} Nc6 {[%emt 0:00:31]} 26. Re1 {[%emt 0:01:12]} Nge7 {[%emt 0:00:22]} 27. Qd3 {[%emt 0:01:19]} f5 {[%emt 0:00:27]} 28. Qxa6 {[%emt 0:01:58]} h6 {[%emt 0:20:12]} 29. Nf3 {[%emt 0:09:57]} Qd8 {[%emt 0:01:24]} 30. Bh4 {[%emt 0:00:58]} Qc7 {[%emt 0:00:19]} 31. Bxe7 {[%emt 0:08:46]} Nxe7 {[%emt 0:00:07]} 32. Ne5 {[%emt 0:00:10]} Kh7 {[%emt 0:01:20]} 33. Red1 {[%emt 0:04:36]} Rfd8 {[%emt 0:02:04]} 34. Qc4 {[%emt 0:06:19]} Rd6 {[%emt 0:01:24]} 35. Nf7 {[%emt 0:01:30]} Rxd1+ {[%emt 0:01:39]} 36. Rxd1 {[%emt 0:00:01]} Ng6 {[%emt 0:00:11]} 37. g3 {[%emt 0:06:42]} Rf8 {[%emt 0:00:15]} 38. Nd6 {[%emt 0:00:44]} Rd8 {[%emt 0:00:17]} 39. Qe6 {[%emt 0:00:13]} Qc6 {[%emt 0:02:51]} 40. Rd5 {[%emt 0:01:37]} Qxa4 {[%emt 0:03:09]} 41. Qxf5 {[%emt 0:00:55]} Qa1+ {[%emt 0:00:17]} 42. Kg2 {[%emt 0:00:09]} Qxc3 {[%emt 0:00:22]} 43. h4 {[%emt 0:00:38]} Qf6 {[%emt 0:01:01]} 44. Qd3 {[%emt 0:00:36]} Kg8 {[%emt 0:00:45]} 45. Ne4 {[%emt 0:00:25]} Qb2+ {[%emt 0:00:54]} 46. Kf3 {[%emt 0:00:57]} Rf8 {[%emt 0:04:57]} 47. Qc3 {[%emt 0:00:47]} Qxc3+ {[%emt 0:02:03]} 48. Nxc3 {[%emt 0:00:01]} Rb8 {[%emt 0:00:15]} 49. Rd6 {[%emt 0:00:54]} Ne7 {[%emt 0:00:27]} 50. Nd5 {[%emt 0:01:15]} Nxd5 {[%emt 0:01:10]} 51. Rxd5 {[%emt 0:00:01]} c4 {[%emt 0:00:35]} 52. Rb5 {[%emt 0:00:45]} c3 {[%emt 0:00:33]} 53. Ke2 {[%emt 0:00:06]} c2 {[%emt 0:00:18]} 54. Kd2 {[%emt 0:00:03]} Rc8 {[%emt 0:00:29]} 55. Kc1 {[%emt 0:00:05]} Rc6 {[%emt 0:03:10]} 56. g4 {[%emt 0:01:11]} Rc4 {[%emt 0:02:52]} 57. Rxb6 {[%emt 0:01:13]} Rxf4 {[%emt 0:00:06]} 58. g5 {[%emt 0:00:18]} h5 {[%emt 0:01:14]} 59. Kxc2 {[%emt 0:00:55]} Rxh4 {[%emt 0:00:36]} 60. g6 {[%emt 0:00:42]} Kf8 {[%emt 0:00:05]} 61. Rb5 {[%emt 0:00:28]} Ke7 {[%emt 0:00:16]} 62. Rf5 {[%emt 0:00:07]} Rg4 {[%emt 0:01:46]} 63. Rxh5 {[%emt 0:00:48]} Rxg6 {[%emt 0:00:09]} 64. Rf5 {[%emt 0:00:06]} Rd6 {[%emt 0:00:09]} 65. Kc3 {[%emt 0:00:50]} Ke6 {[%emt 0:00:16]} 66. Rf4 {[%emt 0:01:03]} g5 {[%emt 0:00:08]} 67. Rd4 {[%emt 0:00:10]} Rxd4 {[%emt 0:01:03]} 68. Kxd4 {[%emt 0:00:02]} Kf5 {[%emt 0:00:08]} 69. Ke3 {[%emt 0:00:08]} Kg4 {[%emt 0:00:09]} 70. Kf2 {[%emt 0:00:03]} Kh3 {[%emt 0:00:09]} 0-1

[Event "HUN-chT Youth 2019"]
[Site "Budapest"]
[Date "2019.10.27"]
[Round "3.17"]
[White "Szabo, Miklos"]
[Black "Szabo, Balazs"]
[Result "1-0"]
[ECO "C02"]
[WhiteElo "1796"]
[BlackElo "2210"]
[Annotator "NA"]
[PlyCount "61"]
[EventDate "2019.10.26"]
[EventType "team-tourn"]
[EventCountry "HUN"]
[SourceTitle "playchess.com"]
[Source "ChessBase"]
[SourceQuality "1"]
[TimeControl "5400+30"]

1. e4 {[%emt 0:00:00]} e6 {[%emt 0:00:00]} 2. d4 {[%emt 0:00:00]} d5 {[%emt 0:00:00]} 3. e5 {[%emt 0:00:00]} c5 {[%emt 0:00:00]} 4. c3 {[%emt 0:00:00]} Nc6 {[%emt 0:00:00]} 5. Nf3 {[%emt 0:00:00]} Nh6 {[%emt 0:00:13]} 6. Bxh6 {[%emt 0:04:45]} gxh6 {[%emt 0:00:05]} 7. a3 {[%emt 0:02:02]} cxd4 {[%emt 0:01:13]} 8. cxd4 {[%emt 0:00:03]} Bg7 {[%emt 0:01:00]} 9. Nc3 {[%emt 0:02:14]} O-O {[%emt 0:01:01]} 10. Bd3 {[%emt 0:02:37]} f6 {[%emt 0:01:28]} 11. Qd2 {[%emt 0:23:26]} fxe5 {[%emt 0:05:23]} 12. dxe5 {[%emt 0:03:42]} Rf7 {[%emt 0:27:09]} 13. Qe2 d4 {[%emt 0:10:16]} 14. Nb5 {[%emt 0:06:02]} Qa5+ {[%emt 0:07:15]} 15. Kf1 {[%emt 0:03:19]} Qd8 {[%emt 0:09:26]} 16. Nd6 {[%emt 0:05:47]} Re7 {[%emt 0:04:21]} 17. Qe4 {[%emt 0:04:32]} Bxe5 {[%emt 0:02:26]} 18. Nxc8 {[%emt 0:00:24]} Rxc8 {[%emt 0:07:55]} 19. Nxe5 {[%emt 0:00:20]} Nxe5 {[%emt 0:02:47]} 20. Qxe5 {[%emt 0:00:42]} Qb6 {[%emt 0:03:29]} 21. Qb5 {[%emt 0:03:55]} Qd6 {[%emt 0:02:46]} 22. g3 {[%emt 0:01:35]} e5 {[%emt 0:04:36]} 23. Kg2 {[%emt 0:03:43]} e4 {[%emt 0:01:49]} 24. Bc4+ {[%emt 0:00:29]} Kh8 {[%emt 0:00:22]} 25. Qd5 {[%emt 0:01:58]} Qf6 {[%emt 0:01:44]} 26. Rhd1 {[%emt 0:01:19]} Qf3+ {[%emt 0:04:44]} 27. Kg1 {[%emt 0:00:07]} Rf8 {[%emt 0:01:03]} 28. Qxd4+ {[%emt 0:00:13]} Rg7 {[%emt 0:00:27]} 29. Qe3 {[%emt 0:01:12]} Qf5 {[%emt 0:00:37]} 30. Rd5 {[%emt 0:01:18]} Qg6 {[%emt 0:00:46]} 31. Rad1 {[%emt 0:00:30]} 1-0

[Event "HUN-chT Youth 2019"]
[Site "Budapest"]
[Date "2019.10.27"]
[Round "3.20"]
[White "Vanczak, Tamas"]
[Black "Gombocz, Zsofia"]
[Result "1-0"]
[ECO "D00"]
[WhiteElo "2327"]
[BlackElo "1917"]
[Annotator "NA"]
[PlyCount "57"]
[EventDate "2019.10.26"]
[EventType "team-tourn"]
[EventCountry "HUN"]
[SourceTitle "playchess.com"]
[Source "ChessBase"]
[SourceQuality "1"]
[TimeControl "5400+30"]

1. d4 {[%emt 0:00:00]} d5 {[%emt 0:00:00]} 2. Bg5 {[%emt 0:00:00]} Nf6 {[%emt 0:00:42]} 3. Bxf6 {[%emt 0:00:00]} exf6 {[%emt 0:00:05]} 4. e3 {[%emt 0:00:13]} Bf5 {[%emt 0:01:48]} 5. Nf3 {[%emt 0:00:48]} Nd7 {[%emt 0:01:15]} 6. c4 {[%emt 0:01:06]} dxc4 {[%emt 0:00:58]} 7. Bxc4 {[%emt 0:00:22]} Nb6 {[%emt 0:00:43]} 8. Bb3 {[%emt 0:01:23]} c5 {[%emt 0:03:10]} 9. Nc3 {[%emt 0:01:08]} Be7 {[%emt 0:03:02]} 10. Nh4 {[%emt 0:04:45]} Qd7 {[%emt 0:09:19]} 11. dxc5 {[%emt 0:08:04]} Bxc5 {[%emt 0:02:08]} 12. Qh5 {[%emt 0:02:13]} g6 {[%emt 0:03:49]} 13. Qf3 {[%emt 0:00:54]} O-O {[%emt 0:08:11]} 14. Rd1 {[%emt 0:08:01]} Bg4 {[%emt 0:08:43]} 15. Rxd7 {[%emt 0:00:26]} Bxf3 {[%emt 0:00:09]} 16. Rxf7 {[%emt 0:00:10]} Rxf7 {[%emt 0:00:19]} 17. Nxf3 {[%emt 0:00:06]} Rc8 {[%emt 0:04:09]} 18. O-O {[%emt 0:03:49]} Bb4 {[%emt 0:01:54]} 19. Bxf7+ {[%emt 0:00:17]} Kxf7 {[%emt 0:00:07]} 20. Nb5 {[%emt 0:00:50]} a6 {[%emt 0:03:13]} 21. Nbd4 {[%emt 0:00:17]} g5 {[%emt 0:02:13]} 22. g4 {[%emt 0:00:51]} a5 {[%emt 0:03:48]} 23. Rd1 {[%emt 0:04:57]} a4 {[%emt 0:02:43]} 24. Kg2 {[%emt 0:03:55]} Rc7 {[%emt 0:07:13]} 25. Nf5 {[%emt 0:05:06]} Rc2 {[%emt 0:04:55]} 26. Rd8 {[%emt 0:00:14]} Rxb2 {[%emt 0:03:37]} 27. Rb8 {[%emt 0:00:11]} Bc5 {[%emt 0:02:00]} 28. Rxb7+ {[%emt 0:00:10]} Ke8 {[%emt 0:00:37]} 29. Ng7+ {[%emt 0:00:42]} 1-0

[Event "HUN-chT Youth 2019"]
[Site "Budapest"]
[Date "2019.10.27"]
[Round "3.21"]
[White "Barasits, Balint"]
[Black "Pribelszky, Bence"]
[Result "1/2-1/2"]
[ECO "B41"]
[WhiteElo "1988"]
[BlackElo "2191"]
[Annotator "NA"]
[PlyCount "97"]
[EventDate "2019.10.26"]
[EventType "team-tourn"]
[EventCountry "HUN"]
[SourceTitle "playchess.com"]
[Source "ChessBase"]
[SourceQuality "1"]
[TimeControl "5400+30"]

1. e4 c5 {[%emt 0:00:00]} 2. Nf3 {[%emt 0:00:00]} e6 {[%emt 0:00:05]} 3. d4 {[%emt 0:00:21]} cxd4 {[%emt 0:00:00]} 4. Nxd4 {[%emt 0:00:00]} a6 {[%emt 0:00:33]} 5. c4 {[%emt 0:00:12]} Nf6 {[%emt 0:00:06]} 6. Bd3 {[%emt 0:00:35]} Nc6 {[%emt 0:00:26]} 7. Nxc6 {[%emt 0:00:18]} dxc6 {[%emt 0:02:39]} 8. O-O {[%emt 0:01:11]} e5 {[%emt 0:01:19]} 9. Nc3 {[%emt 0:02:24]} Bg4 {[%emt 0:05:16]} 10. f3 {[%emt 0:01:19]} Be6 {[%emt 0:08:59]} 11. Be3 {[%emt 0:00:20]} Nd7 {[%emt 0:03:02]} 12. Qe2 {[%emt 0:10:29]} Bc5 {[%emt 0:01:17]} 13. Kh1 {[%emt 0:04:03]} O-O {[%emt 0:03:13]} 14. Bc2 {[%emt 0:09:16]} Bxc4 {[%emt 0:07:23]} 15. Qxc4 {[%emt 0:00:11]} Bxe3 {[%emt 0:00:03]} 16. Qd3 {[%emt 0:00:57]} Bd4 {[%emt 0:02:27]} 17. f4 {[%emt 0:00:18]} Nc5 {[%emt 0:02:20]} 18. Qg3 {[%emt 0:07:07]} Bxc3 {[%emt 0:02:32]} 19. Qxc3 {[%emt 0:00:41]} Qd4 {[%emt 0:00:17]} 20. Qxd4 {[%emt 0:13:16]} exd4 {[%emt 0:00:02]} 21. Rad1 {[%emt 0:00:07]} Rfd8 {[%emt 0:02:41]} 22. Rf3 {[%emt 0:01:11]} a5 {[%emt 0:02:28]} 23. e5 {[%emt 0:12:27]} Rd5 {[%emt 0:04:47]} 24. Ra3 {[%emt 0:06:51]} d3 {[%emt 0:05:01]} 25. Bb1 {[%emt 0:04:04]} Rd4 {[%emt 0:03:22]} 26. Kg1 {[%emt 0:03:22]} g6 {[%emt 0:02:41]} 27. g3 {[%emt 0:01:40]} b6 {[%emt 0:01:27]} 28. Kf2 {[%emt 0:00:32]} Rad8 {[%emt 0:01:10]} 29. Ke3 {[%emt 0:00:10]} Re4+ {[%emt 0:01:37]} 30. Kf3 {[%emt 0:00:38]} Rb4 {[%emt 0:04:54]} 31. Rd2 {[%emt 0:00:55]} Na4 {[%emt 0:08:12]} 32. Raxd3 {[%emt 0:15:27]} Rxd3+ {[%emt 0:00:02]} 33. Rxd3 {[%emt 0:00:05]} Rxb2 {[%emt 0:00:48]} 34. Rd8+ {[%emt 0:00:15]} Kg7 {[%emt 0:00:03]} 35. Be4 {[%emt 0:01:12]} Rxa2 {[%emt 0:01:34]} 36. Bxc6 {[%emt 0:00:09]} Nc5 {[%emt 0:00:15]} 37. h4 {[%emt 0:01:57]} Ra3+ {[%emt 0:00:44]} 38. Kf2 {[%emt 0:01:16]} h5 {[%emt 0:00:24]} 39. Ra8 {[%emt 0:00:49]} Nd3+ {[%emt 0:08:55]} 40. Kg2 {[%emt 0:00:26]} Nb4 {[%emt 0:00:01]} 41. Bb5 {[%emt 0:00:43]} Nd5 {[%emt 0:00:29]} 42. Ra7 {[%emt 0:00:38]} Ne3+ {[%emt 0:04:51]} 43. Kf2 {[%emt 0:00:33]} Ng4+ {[%emt 0:00:34]} 44. Kg2 {[%emt 0:01:21]} Kf8 {[%emt 0:08:28]} 45. Ra8+ {[%emt 0:01:09]} Kg7 {[%emt 0:00:02]} 46. Ra7 {[%emt 0:00:04]} Ra2+ {[%emt 0:03:22]} 47. Kf3 {[%emt 0:00:10]} Ra3+ {[%emt 0:00:21]} 48. Kg2 Ra2+ 49. Kf3 1/2-1/2

[Event "HUN-chT Youth 2019"]
[Site "Budapest"]
[Date "2019.10.27"]
[Round "3.22"]
[White "Kiss, Eniko"]
[Black "Kiraly, Barnabas"]
[Result "1/2-1/2"]
[ECO "A15"]
[WhiteElo "1703"]
[BlackElo "1742"]
[Annotator "NA"]
[PlyCount "46"]
[EventDate "2019.10.26"]
[EventType "team-tourn"]
[EventCountry "HUN"]
[SourceTitle "playchess.com"]
[Source "ChessBase"]
[SourceQuality "1"]
[TimeControl "5400+30"]

1. c4 {[%emt 0:00:12]} Nf6 {[%emt 0:00:11]} 2. g3 {[%emt 0:00:05]} g6 {[%emt 0:00:09]} 3. Bg2 {[%emt 0:00:03]} Bg7 {[%emt 0:00:07]} 4. Nc3 {[%emt 0:00:08]} c6 {[%emt 0:00:17]} 5. e4 {[%emt 0:00:33]} e5 {[%emt 0:00:19]} 6. d3 {[%emt 0:01:05]} d6 {[%emt 0:00:19]} 7. f4 {[%emt 0:01:27]} Nbd7 {[%emt 0:01:31]} 8. Nf3 {[%emt 0:02:01]} O-O {[%emt 0:00:40]} 9. O-O {[%emt 0:01:40]} Qe7 {[%emt 0:01:36]} 10. Re1 {[%emt 0:02:18]} a5 {[%emt 0:01:32]} 11. b3 {[%emt 0:06:56]} Nc5 {[%emt 0:01:17]} 12. Be3 {[%emt 0:03:10]} Nfd7 {[%emt 0:01:46]} 13. Qd2 {[%emt 0:02:12]} Ne6 {[%emt 0:03:24]} 14. f5 {[%emt 0:11:10]} Nd4 {[%emt 0:01:59]} 15. Ne2 {[%emt 0:04:25]} Nxf3+ {[%emt 0:05:21]} 16. Bxf3 {[%emt 0:00:22]} Nc5 {[%emt 0:01:17]} 17. fxg6 {[%emt 0:02:42]} hxg6 {[%emt 0:03:03]} 18. Nc3 {[%emt 0:13:00]} Rd8 {[%emt 0:03:41]} 19. Rad1 {[%emt 0:02:07]} Be6 {[%emt 0:01:49]} 20. Bg5 {[%emt 0:13:03]} f6 {[%emt 0:01:35]} 21. Be3 {[%emt 0:00:23]} Rf8 {[%emt 0:06:14]} 22. d4 {[%emt 0:10:31]} exd4 {[%emt 0:03:08]} 23. Bxd4 {[%emt 0:01:50]} Rad8 {[%emt 0:02:12]} 1/2-1/2

[Event "HUN-chT Youth 2019"]
[Site "Budapest"]
[Date "2019.10.27"]
[Round "3.23"]
[White "Petroczy, Zoltan"]
[Black "Ivan, Reka Gyongyver"]
[Result "1/2-1/2"]
[ECO "B19"]
[WhiteElo "1573"]
[BlackElo "1686"]
[Annotator "NA"]
[PlyCount "70"]
[EventDate "2019.10.26"]
[EventType "team-tourn"]
[EventCountry "HUN"]
[SourceTitle "playchess.com"]
[Source "ChessBase"]
[SourceQuality "1"]
[TimeControl "5400+30"]

1. e4 {[%emt 0:00:00]} c6 {[%emt 0:00:00]} 2. d4 {[%emt 0:00:00]} d5 {[%emt 0:00:00]} 3. Nd2 {[%emt 0:00:18]} dxe4 {[%emt 0:00:00]} 4. Nxe4 {[%emt 0:00:02]} Bf5 {[%emt 0:00:11]} 5. Ng3 {[%emt 0:00:21]} Bg6 {[%emt 0:00:08]} 6. h4 {[%emt 0:00:30]} h6 {[%emt 0:00:08]} 7. Nf3 {[%emt 0:00:50]} Nd7 {[%emt 0:00:11]} 8. h5 {[%emt 0:00:32]} Bh7 {[%emt 0:00:07]} 9. Bd3 {[%emt 0:00:28]} Bxd3 {[%emt 0:00:08]} 10. Qxd3 {[%emt 0:00:14]} e6 {[%emt 0:00:11]} 11. Bd2 {[%emt 0:00:47]} Ngf6 {[%emt 0:00:16]} 12. O-O-O {[%emt 0:01:06]} Be7 {[%emt 0:00:39]} 13. Bf4 {[%emt 0:02:28]} O-O {[%emt 0:02:52]} 14. Qe2 {[%emt 0:03:00]} Qa5 {[%emt 0:04:32]} 15. Kb1 {[%emt 0:01:34]} Qb6 {[%emt 0:05:57]} 16. Bc1 {[%emt 0:01:09]} Nd5 {[%emt 0:02:24]} 17. Ka1 {[%emt 0:01:56]} a5 {[%emt 0:02:09]} 18. Ne5 {[%emt 0:00:36]} N7f6 {[%emt 0:04:17]} 19. Ne4 {[%emt 0:00:32]} Nxe4 {[%emt 0:04:03]} 20. Nd7 {[%emt 0:01:13]} Qa6 {[%emt 0:09:07]} 21. Qxe4 {[%emt 0:00:14]} Rfd8 {[%emt 0:00:36]} 22. Ne5 {[%emt 0:00:39]} a4 {[%emt 0:01:37]} 23. Qf3 {[%emt 0:02:29]} Nf6 {[%emt 0:04:32]} 24. g4 {[%emt 0:01:13]} Qa5 {[%emt 0:21:30]} 25. c4 {[%emt 0:08:31]} a3 {[%emt 0:02:42]} 26. b3 {[%emt 0:02:27]} Rxd4 {[%emt 0:07:59]} 27. Rxd4 {[%emt 0:02:46]} Qxe5 {[%emt 0:00:33]} 28. Qe3 {[%emt 0:00:07]} Ne4 {[%emt 0:00:44]} 29. f4 {[%emt 0:01:44]} Qf6 {[%emt 0:01:32]} 30. Kb1 {[%emt 0:00:18]} Bc5 {[%emt 0:02:07]} 31. Qxe4 {[%emt 0:01:27]} Qxd4 {[%emt 0:01:28]} 32. Qxd4 {[%emt 0:00:20]} Bxd4 {[%emt 0:00:06]} 33. Rd1 {[%emt 0:01:42]} c5 {[%emt 0:05:10]} 34. g5 {[%emt 0:02:07]} Kh7 {[%emt 0:03:21]} 35. Kc2 {[%emt 0:03:23]} b6 {[%emt 0:06:58]} 1/2-1/2

[Event "HUN-chT Youth 2019"]
[Site "Budapest"]
[Date "2019.10.27"]
[Round "3.24"]
[White "Kiraly, Lilla Virag"]
[Black "Farkas, Boglarka"]
[Result "1-0"]
[ECO "B24"]
[WhiteElo "1450"]
[BlackElo "1391"]
[Annotator "NA"]
[PlyCount "115"]
[EventDate "2019.10.26"]
[EventType "team-tourn"]
[EventCountry "HUN"]
[SourceTitle "playchess.com"]
[Source "ChessBase"]
[SourceQuality "1"]
[TimeControl "5400+30"]

1. e4 {[%emt 0:00:00]} c5 {[%emt 0:00:00]} 2. Nc3 {[%emt 0:00:00]} Nc6 {[%emt 0:00:03]} 3. g3 {[%emt 0:00:14]} Nf6 {[%emt 0:00:36]} 4. Bg2 {[%emt 0:00:17]} d6 {[%emt 0:00:24]} 5. d3 {[%emt 0:00:14]} e6 {[%emt 0:00:29]} 6. f4 {[%emt 0:00:23]} Be7 {[%emt 0:00:41]} 7. Nf3 {[%emt 0:00:30]} a6 {[%emt 0:00:44]} 8. O-O {[%emt 0:01:21]} O-O {[%emt 0:00:23]} 9. h3 {[%emt 0:00:34]} b5 {[%emt 0:01:33]} 10. Be3 {[%emt 0:00:55]} Bb7 {[%emt 0:01:22]} 11. Qd2 {[%emt 0:02:23]} Qc7 {[%emt 0:02:29]} 12. Rae1 {[%emt 0:03:06]} Rfd8 {[%emt 0:07:43]} 13. d4 {[%emt 0:05:11]} cxd4 {[%emt 0:03:58]} 14. Nxd4 {[%emt 0:02:11]} Na5 {[%emt 0:01:56]} 15. Qc1 {[%emt 0:10:14]} Rac8 {[%emt 0:03:32]} 16. a3 {[%emt 0:03:04]} Qc4 {[%emt 0:07:43]} 17. Rd1 {[%emt 0:09:38]} b4 {[%emt 0:05:51]} 18. axb4 {[%emt 0:07:01]} Qxb4 {[%emt 0:00:25]} 19. Na2 {[%emt 0:20:49]} Qc4 {[%emt 0:12:40]} 20. Nc3 {[%emt 0:05:57]} Nc6 {[%emt 0:04:09]} 21. Nxc6 {[%emt 0:03:47]} Qxc6 {[%emt 0:02:12]} 22. Rd2 {[%emt 0:03:04]} Qc4 {[%emt 0:05:18]} 23. Rd4 {[%emt 0:07:50]} Qc7 {[%emt 0:01:28]} 24. Rfd1 {[%emt 0:03:31]} e5 {[%emt 0:04:24]} 25. R4d3 {[%emt 0:06:43]} Qc4 {[%emt 0:02:39]} 26. Bb6 {[%emt 0:02:10]} Re8 {[%emt 0:02:47]} 27. b3 {[%emt 0:01:23]} Qb4 {[%emt 0:04:11]} 28. Qe3 {[%emt 0:00:23]} Rc6 {[%emt 0:00:48]} 29. Ba7 {[%emt 0:00:46]} Rec8 {[%emt 0:00:42]} 30. Nd5 {[%emt 0:00:41]} Nxd5 {[%emt 0:03:03]} 31. exd5 {[%emt 0:00:16]} Rxc2 {[%emt 0:02:38]} 32. fxe5 {[%emt 0:00:38]} dxe5 {[%emt 0:00:36]} 33. Qxe5 {[%emt 0:00:33]} Bd6 {[%emt 0:03:51]} 34. Qd4 {[%emt 0:00:31]} R8c3 {[%emt 0:09:14]} 35. Qxb4 {[%emt 0:00:24]} Bxb4 {[%emt 0:00:11]} 36. Rxc3 {[%emt 0:00:13]} Rxc3 {[%emt 0:01:49]} 37. Kh2 {[%emt 0:00:52]} Bd6 {[%emt 0:00:30]} 38. b4 {[%emt 0:00:13]} Rxg3 {[%emt 0:01:10]} 39. Kh1 {[%emt 0:00:46]} Rg6 {[%emt 0:00:59]} 40. Bc5 {[%emt 0:00:22]} h6 {[%emt 0:00:12]} 41. Re1 {[%emt 0:00:25]} Rf6 {[%emt 0:02:11]} 42. Re8+ {[%emt 0:00:31]} Kh7 {[%emt 0:00:10]} 43. Be4+ {[%emt 0:00:26]} g6 {[%emt 0:00:06]} 44. Bd4 {[%emt 0:00:18]} Kg7 {[%emt 0:01:33]} 45. Bxf6+ {[%emt 0:00:40]} Kxf6 {[%emt 0:00:04]} 46. Bg2 {[%emt 0:00:14]} Bxb4 {[%emt 0:00:10]} 47. Rb8 {[%emt 0:00:13]} Bxd5 {[%emt 0:00:35]} 48. Bxd5 {[%emt 0:00:21]} a5 {[%emt 0:00:21]} 49. Rb7 {[%emt 0:00:23]} g5 {[%emt 0:01:03]} 50. Bxf7 {[%emt 0:00:27]} Kg7 {[%emt 0:00:41]} 51. Bh5+ {[%emt 0:00:45]} Kg8 {[%emt 0:00:42]} 52. Kg2 {[%emt 0:00:21]} Bd2 {[%emt 0:00:39]} 53. Kf3 {[%emt 0:00:44]} Bb4 {[%emt 0:01:34]} 54. Ke4 {[%emt 0:00:14]} Bf8 {[%emt 0:00:13]} 55. Kf5 {[%emt 0:00:24]} a4 {[%emt 0:00:17]} 56. Bf7+ {[%emt 0:00:50]} Kh8 {[%emt 0:00:19]} 57. Kg6 {[%emt 0:00:29]} a3 {[%emt 0:00:19]} 58. Rb8 {[%emt 0:00:15]} 1-0

[Event "HUN-chT Youth 2019"]
[Site "Budapest"]
[Date "2019.10.27"]
[Round "3.25"]
[White "Geher, Koppany"]
[Black "Acs, Marton"]
[Result "1-0"]
[ECO "C51"]
[WhiteElo "2256"]
[BlackElo "2126"]
[Annotator "NA"]
[PlyCount "81"]
[EventDate "2019.10.26"]
[EventType "team-tourn"]
[EventCountry "HUN"]
[SourceTitle "playchess.com"]
[Source "ChessBase"]
[SourceQuality "1"]
[TimeControl "5400+30"]

1. e4 {[%emt 0:00:00]} e5 {[%emt 0:00:00]} 2. Nf3 {[%emt 0:00:00]} Nc6 {[%emt 0:00:00]} 3. Bc4 {[%emt 0:00:00]} Bc5 {[%emt 0:00:34]} 4. b4 {[%emt 0:00:00]} Bb6 {[%emt 0:00:47]} 5. a4 {[%emt 0:00:07]} a6 {[%emt 0:00:27]} 6. Nc3 {[%emt 0:00:07]} Nf6 {[%emt 0:09:06]} 7. Nd5 {[%emt 0:00:09]} Nxd5 {[%emt 0:08:04]} 8. exd5 {[%emt 0:00:11]} Nd4 {[%emt 0:00:16]} 9. a5 {[%emt 0:00:07]} Ba7 {[%emt 0:04:14]} 10. d6 {[%emt 0:00:06]} cxd6 {[%emt 0:21:51]} 11. Nxd4 {[%emt 0:02:03]} Bxd4 {[%emt 0:00:32]} 12. Qf3 {[%emt 0:00:25]} O-O {[%emt 0:03:15]} 13. c3 {[%emt 0:01:25]} Ba7 {[%emt 0:00:10]} 14. O-O {[%emt 0:01:57]} d5 {[%emt 0:11:12]} 15. Bxd5 {[%emt 0:01:12]} Qc7 {[%emt 0:00:40]} 16. d4 {[%emt 0:17:24]} d6 {[%emt 0:08:56]} 17. Re1 {[%emt 0:02:28]} Rb8 {[%emt 0:03:07]} 18. Qg3 {[%emt 0:02:57]} Bf5 {[%emt 0:08:43]} 19. dxe5 {[%emt 0:02:00]} dxe5 {[%emt 0:00:02]} 20. Rxe5 {[%emt 0:17:00]} Rbe8 {[%emt 0:04:16]} 21. Bf4 {[%emt 0:12:10]} Qd7 22. Rae1 Rxe5 {[%emt 0:05:13]} 23. Bxe5 {[%emt 0:01:32]} Bg6 {[%emt 0:00:23]} 24. c4 {[%emt 0:01:50]} Kh8 {[%emt 0:03:40]} 25. Qc3 {[%emt 0:06:34]} f6 {[%emt 0:00:27]} 26. Bd4 {[%emt 0:00:41]} Bxd4 {[%emt 0:04:52]} 27. Qxd4 {[%emt 0:00:04]} Bf7 {[%emt 0:00:28]} 28. h3 {[%emt 0:04:40]} Bxd5 {[%emt 0:01:38]} 29. Qxd5 {[%emt 0:04:14]} Qxd5 {[%emt 0:00:32]} 30. cxd5 {[%emt 0:00:02]} Rd8 {[%emt 0:00:43]} 31. Re7 {[%emt 0:07:38]} h5 {[%emt 0:00:08]} 32. Rxb7 {[%emt 0:00:12]} Rxd5 {[%emt 0:00:08]} 33. Kf1 {[%emt 0:00:52]} Rd1+ {[%emt 0:01:04]} 34. Ke2 {[%emt 0:00:02]} Rb1 {[%emt 0:00:11]} 35. Kd3 {[%emt 0:02:16]} Rb2 {[%emt 0:00:11]} 36. b5 {[%emt 0:06:17]} axb5 {[%emt 0:00:19]} 37. a6 {[%emt 0:00:01]} Ra2 {[%emt 0:00:35]} 38. a7 {[%emt 0:00:06]} Kh7 {[%emt 0:00:06]} 39. Kd4 {[%emt 0:00:03]} b4 {[%emt 0:01:01]} 40. Kc4 {[%emt 0:00:16]} Kg6 {[%emt 0:00:58]} 41. Kxb4 {[%emt 0:00:45]} 1-0